[Event "Titled Tuesday Blitz November 07 Early 2023"]
[White "Marchesich, Giovanni"]
[Black "Kuzhylnyi, Oleksandr"]
[WhiteFideId "2824790"]
[BlackFideId "34110500"]
[WhiteElo "2388"]
[BlackElo "2636"]
[Result "1-0"]
[Round "7"]
[TimeControl "180+1"]
[Date "2023.11.07"]
[WhiteClock "0:00:28"]
[BlackClock "0:00:08"]
[Board "83"]

1. d4 {[%clk 0:03:00]}  g6 {[%clk 0:02:57]} 2. Nc3 {[%clk 0:03:00]}  Bg7 {[%clk 0:02:55]} 3. Bf4 {[%clk 0:03:00]}  d6 {[%clk 0:02:56]} 4. e4 {[%clk 0:03:00]}  a6 {[%clk 0:02:54]} 5. Nf3 {[%clk 0:02:58]}  b5 {[%clk 0:02:54]} 6. Bd3 {[%clk 0:02:58]}  Nd7 {[%clk 0:02:50]} 7. O-O {[%clk 0:02:56]}  c5 {[%clk 0:02:46]} 8. dxc5 {[%clk 0:02:52]}  Nxc5 {[%clk 0:02:47]} 9. e5 {[%clk 0:02:50]}  Nxd3 {[%clk 0:02:36]} 10. Qxd3 {[%clk 0:02:50]}  Bf5 {[%clk 0:02:36]} 11. Qd5 {[%clk 0:02:46]}  dxe5 {[%clk 0:02:35]} 12. Qxd8+ {[%clk 0:02:36]}  Rxd8 {[%clk 0:02:36]} 13. Nxe5 {[%clk 0:02:32]}  f6 {[%clk 0:02:18]} 14. Nc6 {[%clk 0:02:28]}  Rc8 {[%clk 0:02:18]} 15. Nd4 {[%clk 0:02:25]}  Bd7 {[%clk 0:02:17]} 16. Rfe1 {[%clk 0:02:08]}  e5 {[%clk 0:02:16]} 17. Bg3 {[%clk 0:02:08]}  Ne7 {[%clk 0:02:13]} 18. Rad1 {[%clk 0:02:01]}  Kf7 {[%clk 0:02:04]} 19. Nb3 {[%clk 0:02:01]}  Rhd8 {[%clk 0:02:01]} 20. Ne4 {[%clk 0:02:00]}  Nf5 {[%clk 0:01:36]} 21. Nbc5 {[%clk 0:01:49]}  Bc6 {[%clk 0:01:31]} 22. c3 {[%clk 0:01:46]}  Bf8 {[%clk 0:01:23]} 23. Nd3 {[%clk 0:01:34]}  Nxg3 {[%clk 0:01:09]} 24. hxg3 {[%clk 0:01:32]}  Rd7 {[%clk 0:01:08]} 25. Ndc5 {[%clk 0:01:25]}  Rd5 {[%clk 0:01:04]} 26. Rxd5 {[%clk 0:01:21]}  Bxd5 {[%clk 0:01:05]} 27. Rd1 {[%clk 0:01:16]}  Bxe4 {[%clk 0:00:54]} 28. Nxe4 {[%clk 0:01:14]}  Ke6 {[%clk 0:00:54]} 29. a3 {[%clk 0:01:05]}  Be7 {[%clk 0:00:53]} 30. g4 {[%clk 0:01:04]}  f5 {[%clk 0:00:46]} 31. gxf5+ {[%clk 0:01:04]}  gxf5 {[%clk 0:00:47]} 32. Ng3 {[%clk 0:01:05]}  a5 {[%clk 0:00:40]} 33. Kf1 {[%clk 0:00:55]}  b4 {[%clk 0:00:37]} 34. cxb4 {[%clk 0:00:50]}  axb4 {[%clk 0:00:38]} 35. axb4 {[%clk 0:00:48]}  Rc2 {[%clk 0:00:36]} 36. Ra1 {[%clk 0:00:42]}  f4 {[%clk 0:00:20]} 37. Ra6+ {[%clk 0:00:41]}  Kd5 {[%clk 0:00:20]} 38. Ra5+ {[%clk 0:00:40]}  Ke6 {[%clk 0:00:16]} 39. Ra6+ {[%clk 0:00:40]}  Kd5 {[%clk 0:00:15]} 40. Ra5+ {[%clk 0:00:41]}  Kd4 {[%clk 0:00:15]} 41. Nf5+ {[%clk 0:00:40]}  Kd3 {[%clk 0:00:14]} 42. Rd5+ {[%clk 0:00:32]}  Ke4 {[%clk 0:00:11]} 43. Nxe7 {[%clk 0:00:31]}  Rc7 {[%clk 0:00:07]} 44. f3+ {[%clk 0:00:29]}  Ke3 {[%clk 0:00:08]} 45. Nf5# {[%clk 0:00:28]} 1-0


[Site "https://www.chess.com"]

[Event "Titled Tuesday Blitz November 07 Early 2023"]
[White "Samarth J Rao"]
[Black "FoxOnTheRun97"]
[WhiteFideId "46652370"]
[WhiteElo "2083"]
[BlackElo "2621"]
[Result "0-1"]
[Round "7"]
[TimeControl "180+1"]
[Date "2023.11.07"]
[WhiteClock "0:00:00"]
[BlackClock "0:00:15"]
[Board "84"]

1. e4 {[%clk 0:03:00]}  c6 {[%clk 0:02:51]} 2. d4 {[%clk 0:03:00]}  d5 {[%clk 0:02:52]} 3. Nc3 {[%clk 0:03:00]}  dxe4 {[%clk 0:02:52]} 4. Nxe4 {[%clk 0:03:01]}  Bf5 {[%clk 0:02:53]} 5. Ng3 {[%clk 0:03:01]}  Bg6 {[%clk 0:02:53]} 6. Nf3 {[%clk 0:03:01]}  Nd7 {[%clk 0:02:52]} 7. h4 {[%clk 0:03:00]}  h6 {[%clk 0:02:52]} 8. h5 {[%clk 0:03:00]}  Bh7 {[%clk 0:02:53]} 9. Bd3 {[%clk 0:03:01]}  Bxd3 {[%clk 0:02:53]} 10. Qxd3 {[%clk 0:03:02]}  e6 {[%clk 0:02:54]} 11. Bd2 {[%clk 0:02:58]}  Ngf6 {[%clk 0:02:53]} 12. O-O-O {[%clk 0:02:58]}  Be7 {[%clk 0:02:54]} 13. Kb1 {[%clk 0:02:55]}  a5 {[%clk 0:02:49]} 14. Ne4 {[%clk 0:02:53]}  Nxe4 {[%clk 0:02:49]} 15. Qxe4 {[%clk 0:02:53]}  Nf6 {[%clk 0:02:48]} 16. Qe2 {[%clk 0:02:53]}  Qd5 {[%clk 0:02:47]} 17. Be3 {[%clk 0:02:53]}  Ng4 {[%clk 0:02:38]} 18. Nd2 {[%clk 0:02:21]}  Nxe3 {[%clk 0:02:33]} 19. fxe3 {[%clk 0:02:16]}  a4 {[%clk 0:02:21]} 20. c4 {[%clk 0:02:01]}  Qd7 {[%clk 0:02:13]} 21. Qg4 {[%clk 0:01:55]}  O-O {[%clk 0:02:03]} 22. Nf3 {[%clk 0:01:45]}  a3 {[%clk 0:01:55]} 23. Ne5 {[%clk 0:01:38]}  Qc7 {[%clk 0:01:52]} 24. b3 {[%clk 0:01:37]}  c5 {[%clk 0:01:43]} 25. Qe4 {[%clk 0:01:30]}  b5 {[%clk 0:01:30]} 26. cxb5 {[%clk 0:01:19]}  cxd4 {[%clk 0:01:28]} 27. exd4 {[%clk 0:01:14]}  Qc3 {[%clk 0:01:23]} 28. Qc2 {[%clk 0:01:08]}  Qg3 {[%clk 0:01:00]} 29. Rh3 {[%clk 0:00:43]}  Qg5 {[%clk 0:01:00]} 30. Nc6 {[%clk 0:00:31]}  Bf6 {[%clk 0:00:56]} 31. b6 {[%clk 0:00:29]}  Qb5 {[%clk 0:00:45]} 32. Qc5 {[%clk 0:00:14]}  Qe2 {[%clk 0:00:44]} 33. Qc2 {[%clk 0:00:14]}  Qa6 {[%clk 0:00:42]} 34. g4 {[%clk 0:00:02]}  Qxb6 {[%clk 0:00:40]} 35. Rc3 {[%clk 0:00:02]}  Qb5 {[%clk 0:00:24]} 36. Rc4 {[%clk 0:00:03]}  Ra6 {[%clk 0:00:20]} 37. Rf1 {[%clk 0:00:02]}  Rxc6 {[%clk 0:00:17]} 38. Rxf6 {[%clk 0:00:00]}  Rxc4 {[%clk 0:00:15]} 0-1


[Site "https://www.chess.com"]

[Event "Titled Tuesday Blitz November 07 Early 2023"]
[White "BardArtem"]
[Black "HeroRubiksCube"]
[WhiteElo "2791"]
[BlackElo "2518"]
[Result "1-0"]
[Round "7"]
[TimeControl "180+1"]
[Date "2023.11.07"]
[WhiteClock "0:01:34"]
[BlackClock "0:00:45"]
[Board "86"]

1. e4 {[%clk 0:02:58]}  d5 {[%clk 0:02:59]} 2. exd5 {[%clk 0:02:58]}  Nf6 {[%clk 0:02:59]} 3. Bb5+ {[%clk 0:02:58]}  Nbd7 {[%clk 0:02:58]} 4. d4 {[%clk 0:02:58]}  g6 {[%clk 0:02:55]} 5. Nf3 {[%clk 0:02:58]}  Bg7 {[%clk 0:02:56]} 6. O-O {[%clk 0:02:57]}  O-O {[%clk 0:02:56]} 7. Re1 {[%clk 0:02:58]}  Nxd5 {[%clk 0:02:54]} 8. Bf1 {[%clk 0:02:56]}  c6 {[%clk 0:02:51]} 9. c4 {[%clk 0:02:57]}  N5f6 {[%clk 0:02:51]} 10. Nc3 {[%clk 0:02:57]}  Re8 {[%clk 0:02:48]} 11. Bf4 {[%clk 0:02:57]}  Nf8 {[%clk 0:02:48]} 12. h3 {[%clk 0:02:57]}  b6 {[%clk 0:02:40]} 13. Qd2 {[%clk 0:02:56]}  Bb7 {[%clk 0:02:40]} 14. Rad1 {[%clk 0:02:56]}  Qc8 {[%clk 0:02:29]} 15. Ne5 {[%clk 0:02:45]}  c5 {[%clk 0:02:20]} 16. d5 {[%clk 0:02:45]}  N8d7 {[%clk 0:02:09]} 17. Be2 {[%clk 0:02:33]}  Nxe5 {[%clk 0:02:09]} 18. Bxe5 {[%clk 0:02:34]}  Nd7 {[%clk 0:02:06]} 19. Bxg7 {[%clk 0:02:35]}  Kxg7 {[%clk 0:02:07]} 20. Bg4 {[%clk 0:02:34]}  Qd8 {[%clk 0:02:03]} 21. Bxd7 {[%clk 0:02:25]}  Qxd7 {[%clk 0:02:04]} 22. Qf4 {[%clk 0:02:25]}  Rad8 {[%clk 0:01:54]} 23. Ne4 {[%clk 0:02:24]}  h6 {[%clk 0:01:43]} 24. Re3 {[%clk 0:02:17]}  Qf5 {[%clk 0:01:42]} 25. Qxf5 {[%clk 0:02:11]}  gxf5 {[%clk 0:01:43]} 26. Ng3 {[%clk 0:02:12]}  e6 {[%clk 0:01:37]} 27. Rde1 {[%clk 0:02:10]}  Bc8 {[%clk 0:01:15]} 28. Nxf5+ {[%clk 0:02:09]}  Kg6 {[%clk 0:01:12]} 29. Ng3 {[%clk 0:02:02]}  f5 {[%clk 0:01:09]} 30. f4 {[%clk 0:01:58]}  b5 {[%clk 0:01:05]} 31. b3 {[%clk 0:01:52]}  bxc4 {[%clk 0:01:05]} 32. bxc4 {[%clk 0:01:53]}  Re7 {[%clk 0:00:59]} 33. Re5 {[%clk 0:01:43]}  Kf6 {[%clk 0:00:56]} 34. Nxf5 {[%clk 0:01:41]}  Rb7 {[%clk 0:00:45]} 35. dxe6 {[%clk 0:01:34]} 1-0


[Site "https://www.chess.com"]

[Event "Titled Tuesday Blitz November 07 Early 2023"]
[White "Seletsky, Grigory"]
[Black "Mekhitarian, Krikor Sevag"]
[WhiteFideId "14112191"]
[BlackFideId "2107660"]
[WhiteElo "2517"]
[BlackElo "2762"]
[Result "0-1"]
[Round "7"]
[TimeControl "180+1"]
[Date "2023.11.07"]
[WhiteClock "0:00:01"]
[BlackClock "0:00:04"]
[Board "87"]

1. Nf3 {[%clk 0:02:56]}  d5 {[%clk 0:02:59]} 2. b3 {[%clk 0:02:56]}  Nf6 {[%clk 0:02:54]} 3. Bb2 {[%clk 0:02:56]}  g6 {[%clk 0:02:54]} 4. Bxf6 {[%clk 0:02:53]}  exf6 {[%clk 0:02:54]} 5. d4 {[%clk 0:02:53]}  Bg7 {[%clk 0:02:53]} 6. e3 {[%clk 0:02:52]}  O-O {[%clk 0:02:54]} 7. g3 {[%clk 0:02:51]}  c6 {[%clk 0:02:50]} 8. Bg2 {[%clk 0:02:51]}  Re8 {[%clk 0:02:50]} 9. O-O {[%clk 0:02:52]}  Nd7 {[%clk 0:02:51]} 10. c3 {[%clk 0:02:49]}  f5 {[%clk 0:02:51]} 11. Nbd2 {[%clk 0:02:49]}  Nf6 {[%clk 0:02:51]} 12. Rc1 {[%clk 0:02:45]}  Ne4 {[%clk 0:02:51]} 13. c4 {[%clk 0:02:44]}  Be6 {[%clk 0:02:50]} 14. cxd5 {[%clk 0:02:42]}  Bxd5 {[%clk 0:02:50]} 15. Nxe4 {[%clk 0:02:40]}  fxe4 {[%clk 0:02:45]} 16. Nd2 {[%clk 0:02:38]}  f5 {[%clk 0:02:46]} 17. Qc2 {[%clk 0:02:20]}  a5 {[%clk 0:02:43]} 18. a4 {[%clk 0:02:18]}  h5 {[%clk 0:02:37]} 19. Nc4 {[%clk 0:02:05]}  h4 {[%clk 0:02:35]} 20. Qc3 {[%clk 0:01:52]}  Bf6 {[%clk 0:02:27]} 21. Rfd1 {[%clk 0:01:51]}  Qc7 {[%clk 0:02:18]} 22. b4 {[%clk 0:01:44]}  axb4 {[%clk 0:02:14]} 23. Qxb4 {[%clk 0:01:44]}  Kg7 {[%clk 0:02:13]} 24. Nb6 {[%clk 0:01:43]}  Rad8 {[%clk 0:02:12]} 25. Nxd5 {[%clk 0:01:42]}  Rxd5 {[%clk 0:02:12]} 26. Rb1 {[%clk 0:01:38]}  Re7 {[%clk 0:02:11]} 27. Qb6 {[%clk 0:01:30]}  Qxb6 {[%clk 0:01:51]} 28. Rxb6 {[%clk 0:01:28]}  c5 {[%clk 0:01:52]} 29. Rdb1 {[%clk 0:00:58]}  cxd4 {[%clk 0:01:51]} 30. exd4 {[%clk 0:00:57]}  Rxd4 {[%clk 0:01:36]} 31. Rxb7 {[%clk 0:00:56]}  Rxb7 {[%clk 0:01:37]} 32. Rxb7+ {[%clk 0:00:55]}  Kh6 {[%clk 0:01:38]} 33. a5 {[%clk 0:00:36]}  Rd2 {[%clk 0:01:34]} 34. Rb1 {[%clk 0:00:36]}  Bd4 {[%clk 0:01:33]} 35. Rf1 {[%clk 0:00:36]}  Kg5 {[%clk 0:01:27]} 36. Bh3 {[%clk 0:00:34]}  Ra2 {[%clk 0:01:14]} 37. Kg2 {[%clk 0:00:28]}  e3 {[%clk 0:01:03]} 38. Kf3 {[%clk 0:00:28]}  exf2 {[%clk 0:00:55]} 39. Rd1 {[%clk 0:00:27]}  Bc5 {[%clk 0:00:49]} 40. Bf1 {[%clk 0:00:27]}  hxg3 {[%clk 0:00:48]} 41. hxg3 {[%clk 0:00:27]}  Rxa5 {[%clk 0:00:48]} 42. Kg2 {[%clk 0:00:26]}  Ra3 {[%clk 0:00:47]} 43. Rd3 {[%clk 0:00:23]}  Ra2 {[%clk 0:00:42]} 44. Rc3 {[%clk 0:00:20]}  Bd4 {[%clk 0:00:41]} 45. Rd3 {[%clk 0:00:19]}  Ra4 {[%clk 0:00:35]} 46. Kf3 {[%clk 0:00:17]}  Kf6 {[%clk 0:00:32]} 47. Kg2 {[%clk 0:00:17]}  Rb4 {[%clk 0:00:32]} 48. Ra3 {[%clk 0:00:16]}  Ke5 {[%clk 0:00:30]} 49. Kf3 {[%clk 0:00:16]}  Bc5 {[%clk 0:00:27]} 50. Ra5 {[%clk 0:00:15]}  Rb3+ {[%clk 0:00:28]} 51. Kg2 {[%clk 0:00:14]}  Rc3 {[%clk 0:00:28]} 52. Ra4 {[%clk 0:00:13]}  g5 {[%clk 0:00:28]} 53. Rc4 {[%clk 0:00:12]}  Rxc4 {[%clk 0:00:12]} 54. Bxc4 {[%clk 0:00:13]}  Be3 {[%clk 0:00:12]} 55. Be2 {[%clk 0:00:13]}  g4 {[%clk 0:00:09]} 56. Bd3 {[%clk 0:00:13]}  Kf6 {[%clk 0:00:07]} 57. Kf1 {[%clk 0:00:12]}  Bb6 {[%clk 0:00:06]} 58. Kg2 {[%clk 0:00:12]}  Bc5 {[%clk 0:00:06]} 59. Bf1 {[%clk 0:00:12]}  Ke6 {[%clk 0:00:05]} 60. Bd3 {[%clk 0:00:12]}  Ke5 {[%clk 0:00:06]} 61. Bc2 {[%clk 0:00:12]}  Bb6 {[%clk 0:00:05]} 62. Bd3 {[%clk 0:00:12]}  Ba7 {[%clk 0:00:04]} 63. Bc2 {[%clk 0:00:12]}  Be3 {[%clk 0:00:05]} 64. Bd3 {[%clk 0:00:12]}  Bd2 {[%clk 0:00:05]} 65. Kf1 {[%clk 0:00:11]}  Be1 {[%clk 0:00:05]} 66. Kg2 {[%clk 0:00:11]}  Kf6 {[%clk 0:00:05]} 67. Bf1 {[%clk 0:00:10]}  Ke6 {[%clk 0:00:05]} 68. Bd3 {[%clk 0:00:10]}  Ke5 {[%clk 0:00:05]} 69. Bc2 {[%clk 0:00:10]}  f1=Q+ {[%clk 0:00:05]} 70. Kxf1 {[%clk 0:00:10]}  Bxg3 {[%clk 0:00:06]} 71. Kg2 {[%clk 0:00:10]}  Bf4 {[%clk 0:00:03]} 72. Bd1 {[%clk 0:00:10]}  Be3 {[%clk 0:00:03]} 73. Be2 {[%clk 0:00:11]}  Kf4 {[%clk 0:00:03]} 74. Bd1 {[%clk 0:00:11]}  Bd4 {[%clk 0:00:04]} 75. Be2 {[%clk 0:00:11]}  Bf6 {[%clk 0:00:04]} 76. Bd1 {[%clk 0:00:11]}  Ke3 {[%clk 0:00:04]} 77. Be2 {[%clk 0:00:01]}  Kxe2 {[%clk 0:00:04]} 0-1


[Site "https://www.chess.com"]

[Event "Titled Tuesday Blitz November 07 Early 2023"]
[White "Hayrapetyan, Hovik"]
[Black "Tifferet, Shaked"]
[WhiteFideId "13302639"]
[BlackFideId "2811529"]
[WhiteElo "2761"]
[BlackElo "2516"]
[Result "1-0"]
[Round "7"]
[TimeControl "180+1"]
[Date "2023.11.07"]
[WhiteClock "0:01:24"]
[BlackClock "0:02:03"]
[Board "88"]

1. d4 {[%clk 0:03:00]}  e6 {[%clk 0:02:59]} 2. c4 {[%clk 0:02:59]}  b6 {[%clk 0:02:59]} 3. Nc3 {[%clk 0:02:58]}  Bb7 {[%clk 0:03:00]} 4. e4 {[%clk 0:02:58]}  Bb4 {[%clk 0:02:58]} 5. Bd3 {[%clk 0:02:56]}  Ne7 {[%clk 0:02:56]} 6. Ne2 {[%clk 0:02:49]}  d6 {[%clk 0:02:54]} 7. Qa4+ {[%clk 0:02:46]}  Nbc6 {[%clk 0:02:55]} 8. d5 {[%clk 0:02:47]}  Bxc3+ {[%clk 0:02:55]} 9. Nxc3 {[%clk 0:02:44]}  b5 {[%clk 0:02:56]} 10. Qxb5 {[%clk 0:02:43]}  Rb8 {[%clk 0:02:52]} 11. dxc6 {[%clk 0:02:39]}  Bxc6 {[%clk 0:02:50]} 12. Qg5 {[%clk 0:02:39]}  h6 {[%clk 0:02:48]} 13. Qxg7 {[%clk 0:02:37]}  Rg8 {[%clk 0:02:49]} 14. Qxh6 {[%clk 0:02:37]}  Rxg2 {[%clk 0:02:49]} 15. Bg5 {[%clk 0:02:33]}  Rxb2 {[%clk 0:02:44]} 16. Qh8+ {[%clk 0:02:09]}  Kd7 {[%clk 0:02:44]} 17. Qxd8+ {[%clk 0:02:09]}  Kxd8 {[%clk 0:02:45]} 18. Be3 {[%clk 0:02:09]}  f5 {[%clk 0:02:40]} 19. O-O-O {[%clk 0:01:57]}  Rb4 {[%clk 0:02:39]} 20. h4 {[%clk 0:01:49]}  fxe4 {[%clk 0:02:39]} 21. Nxe4 {[%clk 0:01:42]}  Bxe4 {[%clk 0:02:36]} 22. Bxe4 {[%clk 0:01:42]}  Rxc4+ {[%clk 0:02:36]} 23. Bc2 {[%clk 0:01:42]}  Nd5 {[%clk 0:02:37]} 24. Rd2 {[%clk 0:01:32]}  Nb4 {[%clk 0:02:21]} 25. h5 {[%clk 0:01:29]}  Rh4 {[%clk 0:02:03]} 26. Rxh4 {[%clk 0:01:24]} 1-0


[Site "https://www.chess.com"]

[Event "Titled Tuesday Blitz November 07 Early 2023"]
[White "Ahmad, Khagan"]
[Black "Hambleton, Aman"]
[WhiteFideId "13431552"]
[BlackFideId "2606577"]
[WhiteElo "2511"]
[BlackElo "2738"]
[Result "0-1"]
[Round "7"]
[TimeControl "180+1"]
[Date "2023.11.07"]
[WhiteClock "0:00:00"]
[BlackClock "0:00:03"]
[Board "91"]

1. Nf3 {[%clk 0:02:47]}  b6 {[%clk 0:02:59]} 2. c4 {[%clk 0:02:46]}  Bb7 {[%clk 0:02:59]} 3. Nc3 {[%clk 0:02:46]}  c5 {[%clk 0:03:00]} 4. g3 {[%clk 0:02:45]}  Bxf3 {[%clk 0:03:00]} 5. exf3 {[%clk 0:02:45]}  Nc6 {[%clk 0:03:01]} 6. Bg2 {[%clk 0:02:44]}  g6 {[%clk 0:03:01]} 7. f4 {[%clk 0:02:45]}  Bg7 {[%clk 0:03:01]} 8. O-O {[%clk 0:02:45]}  Nh6 {[%clk 0:03:02]} 9. d3 {[%clk 0:02:35]}  Nf5 {[%clk 0:03:01]} 10. Be3 {[%clk 0:02:35]}  h5 {[%clk 0:02:59]} 11. h4 {[%clk 0:02:35]}  Rc8 {[%clk 0:02:59]} 12. Rb1 {[%clk 0:02:29]}  d6 {[%clk 0:02:52]} 13. Be4 {[%clk 0:02:27]}  Qd7 {[%clk 0:02:51]} 14. Ne2 {[%clk 0:02:20]}  Ncd4 {[%clk 0:02:44]} 15. b4 {[%clk 0:01:52]}  O-O {[%clk 0:02:42]} 16. Nxd4 {[%clk 0:01:43]}  Nxd4 {[%clk 0:02:41]} 17. b5 {[%clk 0:01:42]}  e6 {[%clk 0:02:37]} 18. Bxd4 {[%clk 0:01:22]}  Bxd4 {[%clk 0:02:38]} 19. f5 {[%clk 0:01:23]}  exf5 {[%clk 0:01:37]} 20. Bd5 {[%clk 0:01:18]}  f4 {[%clk 0:01:19]} 21. Kg2 {[%clk 0:01:18]}  fxg3 {[%clk 0:01:07]} 22. fxg3 {[%clk 0:01:18]}  Kg7 {[%clk 0:01:07]} 23. Qf3 {[%clk 0:01:17]}  f5 {[%clk 0:00:43]} 24. Rbe1 {[%clk 0:01:10]}  Be5 {[%clk 0:00:43]} 25. Qe3 {[%clk 0:00:27]}  Kh7 {[%clk 0:00:33]} 26. Qg5 {[%clk 0:00:26]}  Qg7 {[%clk 0:00:32]} 27. a4 {[%clk 0:00:21]}  Rce8 {[%clk 0:00:23]} 28. a5 {[%clk 0:00:18]}  bxa5 {[%clk 0:00:23]} 29. Re2 {[%clk 0:00:12]}  Bf6 {[%clk 0:00:13]} 30. Qd2 {[%clk 0:00:12]}  Bc3 {[%clk 0:00:13]} 31. Qc2 {[%clk 0:00:10]}  Bd4 {[%clk 0:00:02]} 32. Bc6 {[%clk 0:00:06]}  Re5 {[%clk 0:00:02]} 33. Rxe5 {[%clk 0:00:04]}  dxe5 {[%clk 0:00:03]} 34. Qe2 {[%clk 0:00:02]}  Qc7 {[%clk 0:00:02]} 35. Qa2 {[%clk 0:00:01]}  e4 {[%clk 0:00:01]} 36. dxe4 {[%clk 0:00:01]}  f4 {[%clk 0:00:02]} 37. gxf4 {[%clk 0:00:01]}  Rxf4 {[%clk 0:00:03]} 38. Qe2 {[%clk 0:00:01]}  Rxf1 {[%clk 0:00:03]} 39. Qxf1 {[%clk 0:00:00]}  a4 {[%clk 0:00:03]} 0-1


[Site "https://www.chess.com"]

[Event "Titled Tuesday Blitz November 07 Early 2023"]
[White "Zavgorodniy, Sergiy"]
[Black "Krzywda, Andrzej"]
[WhiteFideId "14110148"]
[BlackFideId "1114565"]
[WhiteElo "2681"]
[BlackElo "2505"]
[Result "1-0"]
[Round "7"]
[TimeControl "180+1"]
[Date "2023.11.07"]
[WhiteClock "0:00:13"]
[BlackClock "0:00:00"]
[Board "93"]

1. d4 {[%clk 0:03:00]}  d5 {[%clk 0:02:59]} 2. c4 {[%clk 0:03:00]}  e6 {[%clk 0:02:59]} 3. Nf3 {[%clk 0:03:00]}  Nf6 {[%clk 0:02:59]} 4. e3 {[%clk 0:03:00]}  a6 {[%clk 0:02:56]} 5. Nbd2 {[%clk 0:03:01]}  Nbd7 {[%clk 0:02:54]} 6. Bd3 {[%clk 0:03:00]}  dxc4 {[%clk 0:02:50]} 7. Nxc4 {[%clk 0:03:00]}  b5 {[%clk 0:02:50]} 8. Ncd2 {[%clk 0:02:57]}  c5 {[%clk 0:02:48]} 9. b3 {[%clk 0:02:55]}  Bb7 {[%clk 0:02:41]} 10. O-O {[%clk 0:02:55]}  Rc8 {[%clk 0:02:34]} 11. Bb2 {[%clk 0:02:55]}  Be7 {[%clk 0:02:31]} 12. a4 {[%clk 0:02:54]}  Qb6 {[%clk 0:02:28]} 13. axb5 {[%clk 0:02:51]}  axb5 {[%clk 0:02:28]} 14. Qe2 {[%clk 0:02:51]}  Bc6 {[%clk 0:02:17]} 15. dxc5 {[%clk 0:02:49]}  Nxc5 {[%clk 0:02:15]} 16. Bb1 {[%clk 0:02:33]}  O-O {[%clk 0:02:05]} 17. Nd4 {[%clk 0:02:33]}  Bd7 {[%clk 0:01:53]} 18. N2f3 {[%clk 0:02:32]}  Rfd8 {[%clk 0:01:43]} 19. Ne5 {[%clk 0:02:32]}  Be8 {[%clk 0:01:44]} 20. Rc1 {[%clk 0:02:23]}  Qb8 {[%clk 0:01:37]} 21. Nef3 {[%clk 0:02:15]}  Nd5 {[%clk 0:01:28]} 22. h3 {[%clk 0:02:10]}  Bf6 {[%clk 0:01:21]} 23. Bc2 {[%clk 0:02:08]}  Ne7 {[%clk 0:01:13]} 24. Bd1 {[%clk 0:01:56]}  e5 {[%clk 0:01:10]} 25. b4 {[%clk 0:01:46]}  exd4 {[%clk 0:01:01]} 26. bxc5 {[%clk 0:01:46]}  d3 {[%clk 0:01:01]} 27. Qd2 {[%clk 0:01:45]}  Bxb2 {[%clk 0:00:59]} 28. Qxb2 {[%clk 0:01:46]}  Nf5 {[%clk 0:00:41]} 29. Bb3 {[%clk 0:01:39]}  Bc6 {[%clk 0:00:40]} 30. Ne5 {[%clk 0:01:32]}  Bd5 {[%clk 0:00:30]} 31. Nxd3 {[%clk 0:01:08]}  Nh4 {[%clk 0:00:12]} 32. Bxd5 {[%clk 0:01:05]}  Rxd5 {[%clk 0:00:13]} 33. Qb3 {[%clk 0:00:55]}  Rg5 {[%clk 0:00:12]} 34. Nf4 {[%clk 0:00:54]}  Nf3+ {[%clk 0:00:09]} 35. Kh1 {[%clk 0:00:52]}  Nd2 {[%clk 0:00:09]} 36. Qd3 {[%clk 0:00:41]}  Rd8 {[%clk 0:00:05]} 37. Qe2 {[%clk 0:00:34]}  Nb3 {[%clk 0:00:04]} 38. c6 {[%clk 0:00:32]}  Nxc1 {[%clk 0:00:03]} 39. Rxc1 {[%clk 0:00:33]}  Rc8 {[%clk 0:00:03]} 40. Qc2 {[%clk 0:00:28]}  Qb6 {[%clk 0:00:03]} 41. c7 {[%clk 0:00:20]}  b4 {[%clk 0:00:03]} 42. Qc4 {[%clk 0:00:17]}  h6 {[%clk 0:00:02]} 43. Nd5 {[%clk 0:00:16]}  Rxd5 {[%clk 0:00:02]} 44. Qxd5 {[%clk 0:00:17]}  Rxc7 {[%clk 0:00:02]} 45. Qd8+ {[%clk 0:00:17]}  Kh7 {[%clk 0:00:03]} 46. Qxc7 {[%clk 0:00:17]}  Qf6 {[%clk 0:00:02]} 47. Qc2+ {[%clk 0:00:17]}  g6 {[%clk 0:00:02]} 48. Rb1 {[%clk 0:00:17]}  Qd6 {[%clk 0:00:01]} 49. Kg1 {[%clk 0:00:16]}  Qe7 {[%clk 0:00:01]} 50. Qb3 {[%clk 0:00:16]}  h5 {[%clk 0:00:02]} 51. Qxb4 {[%clk 0:00:16]}  Qf6 {[%clk 0:00:02]} 52. Qd4 {[%clk 0:00:16]}  Qa6 {[%clk 0:00:00]} 53. Rb8 {[%clk 0:00:13]} 1-0


[Site "https://www.chess.com"]

[Event "Titled Tuesday Blitz November 07 Early 2023"]
[White "Starozhilov, Leonid"]
[Black "Santos Flores, Alberto"]
[WhiteFideId "14106752"]
[BlackFideId "3601234"]
[WhiteElo "2678"]
[BlackElo "2503"]
[Result "1-0"]
[Round "7"]
[TimeControl "180+1"]
[Date "2023.11.07"]
[WhiteClock "0:00:28"]
[BlackClock "0:00:05"]
[Board "94"]

1. e4 {[%clk 0:03:00]}  e6 {[%clk 0:03:00]} 2. d4 {[%clk 0:03:00]}  d5 {[%clk 0:03:00]} 3. Nc3 {[%clk 0:03:01]}  Nf6 {[%clk 0:03:00]} 4. Bg5 {[%clk 0:03:01]}  Bb4 {[%clk 0:03:00]} 5. e5 {[%clk 0:03:00]}  h6 {[%clk 0:03:00]} 6. Bc1 {[%clk 0:03:00]}  Ne4 {[%clk 0:02:59]} 7. Ne2 {[%clk 0:03:00]}  c5 {[%clk 0:02:53]} 8. a3 {[%clk 0:03:01]}  Bxc3+ {[%clk 0:02:52]} 9. bxc3 {[%clk 0:03:00]}  cxd4 {[%clk 0:02:50]} 10. cxd4 {[%clk 0:03:00]}  Nc6 {[%clk 0:02:41]} 11. c3 {[%clk 0:02:55]}  Qa5 {[%clk 0:02:27]} 12. Qb3 {[%clk 0:02:38]}  f6 {[%clk 0:02:17]} 13. f3 {[%clk 0:02:35]}  Ng5 {[%clk 0:02:01]} 14. exf6 {[%clk 0:02:28]}  gxf6 {[%clk 0:02:01]} 15. Bd2 {[%clk 0:02:26]}  Qc7 {[%clk 0:01:55]} 16. Nf4 {[%clk 0:02:18]}  Bd7 {[%clk 0:01:52]} 17. h4 {[%clk 0:01:59]}  Nf7 {[%clk 0:01:50]} 18. Bd3 {[%clk 0:01:47]}  O-O-O {[%clk 0:01:49]} 19. O-O {[%clk 0:01:40]}  Nd6 {[%clk 0:01:46]} 20. Ng6 {[%clk 0:01:30]}  Rhg8 {[%clk 0:01:42]} 21. h5 {[%clk 0:01:31]}  Kb8 {[%clk 0:01:37]} 22. Bf4 {[%clk 0:01:26]}  Bc8 {[%clk 0:01:26]} 23. Rfe1 {[%clk 0:01:22]}  Rge8 {[%clk 0:01:05]} 24. a4 {[%clk 0:01:20]}  Ka8 {[%clk 0:01:04]} 25. Bb5 {[%clk 0:01:19]}  a6 {[%clk 0:01:01]} 26. Qa3 {[%clk 0:01:01]}  Qd7 {[%clk 0:00:42]} 27. Qc5 {[%clk 0:00:55]}  Nf5 {[%clk 0:00:35]} 28. Reb1 {[%clk 0:00:48]}  e5 {[%clk 0:00:28]} 29. dxe5 {[%clk 0:00:43]}  fxe5 {[%clk 0:00:28]} 30. Nxe5 {[%clk 0:00:44]}  Rxe5 {[%clk 0:00:20]} 31. Bxe5 {[%clk 0:00:43]}  Qe8 {[%clk 0:00:18]} 32. Bxc6 {[%clk 0:00:35]}  Qxc6 {[%clk 0:00:18]} 33. Qxc6 {[%clk 0:00:33]}  bxc6 {[%clk 0:00:19]} 34. Bd4 {[%clk 0:00:32]}  Rg8 {[%clk 0:00:13]} 35. Rb2 {[%clk 0:00:31]}  Nxd4 {[%clk 0:00:11]} 36. cxd4 {[%clk 0:00:31]}  Bf5 {[%clk 0:00:05]} 37. Rb6 {[%clk 0:00:28]} 1-0


[Site "https://www.chess.com"]